bitfinex/quotes_SOLUSD_20240827
["timestamp","ask_amount","ask_price","bid_price","bid_amount"]
[1724761529362,6.4952,153.96,153.92,0.25098]
[1724761529569,6.4952,153.96,153.92,6.62209]
[1724761529949,6.4949,153.97,153.92,6.62209]
[1724761530155,6.4952,153.96,153.92,6.4966]
[1724761530476,6.4952,153.96,153.93,1.2991163]
[1724761532074,6.4952,153.96,153.93,1.29911708]
[1724761532279,6.4957,153.95,153.91,6.4971]
[1724761533553,6.4957,153.95,153.91,7.79634479]
[1724761535250,6.4953,153.96,153.92,6.4968]
[1724761535451,45.9883008,153.98,153.93,7.79537925]
[1724761535452,20.0,153.98,153.93,7.79537925]
[1724761535763,20.0,153.99,153.93,7.79537925]
[1724761536885,6.4948,153.97,153.93,7.79537925]
[1724761537470,6.4943,153.98,153.94,6.4959]
[1724761537662,6.4943,153.98,153.93,7.79537925]
[1724761538691,6.4943,153.98,153.94,6.496]
[1724761542293,6.4943,153.98,153.95,1.29906061]
[1724761542877,20.0,153.99,153.96,1.29897489]
[1724761543071,6.4937,154.0,153.95,0.12549]
[1724761543292,20.0,153.99,153.95,0.25098]
[1724761543695,20.0,153.99,153.96,6.4951]
[1724761545588,26.4941,153.99,153.95,6.4955]
[1724761545994,6.4943,153.98,153.94,22.7352]
[1724761547190,6.4943,153.98,153.95,1.29906328]
[1724761547385,26.494,153.99,153.95,7.79456328]
[1724761548281,20.0,153.99,153.96,7.79384147]
[1724761548593,1.13116874,154.0,153.96,6.4949]
[1724761548594,26.4935,154.0,153.96,6.4949]
[1724761549745,1.13097128,154.02,153.97,1.29880559]
[1724761549900,9.84717188,154.06,154.02,6.4926]
[1724761550100,284.68944376,154.09,154.01,16.2326]
[1724761550101,16.87248146,154.08,154.01,16.2326]
[1724761550300,1.13051198,154.07,154.04,6.4916]
[1724761550523,1.13051198,154.07,154.05,7.78944545]
[1724761550728,10.38208146,154.11,154.06,6.4908]
[1724761550912,16.87128146,154.11,154.06,6.4908]
[1724761551227,16.87098146,154.11,154.07,1.29804264]
[1724761551816,16.87098146,154.11,154.06,6.4908]
[1724761552108,6.4894,154.1,154.05,16.2277]
[1724761552337,6.4894,154.1,154.06,1.29806855]
[1724761553512,6.4894,154.1,154.05,16.2277]
[1724761553831,6.4894,154.1,154.06,1.29803837]
[1724761555418,6.4894,154.1,154.06,7.78893837]
[1724761555714,7.61829695,154.13,154.08,6.49]
[1724761555923,20.0,154.12,154.08,6.49]
[1724761556828,26.4885,154.12,154.07,6.4904]
[1724761557138,26.4885,154.12,154.08,1.29782444]
[1724761557509,6.4889,154.11,154.06,6.4908]
[1724761559533,6.4889,154.11,154.06,7.78879361]
[1724761560036,7.61730731,154.15,154.08,32.8761]
[1724761560260,32.29758909,154.18,154.11,6.4887]
[1724761560448,32.29758909,154.18,154.12,17.51794097]
[1724761560449,1.12975779,154.18,154.12,17.51794097]
[1724761560731,6.4859,154.18,154.13,1.29741063]
[1724761561323,6.4865,154.17,154.13,1.29741063]
[1724761561520,25.93768909,154.16,154.09,0.12549]
[1724761561706,6.4876,154.14,154.09,6.61509]
[1724761561905,6.4872,154.15,154.1,6.4892]
[1724761562325,6.4879,154.14,154.08,23.2874]
[1724761562534,6.4879,154.14,154.08,23.1409]
[1724761562535,6.488,154.13,154.08,23.1409]
[1724761563115,6.4888,154.11,154.08,16.6508]
[1724761563329,15.6034,154.17,154.04,6.2104]
[1724761563330,25.93768909,154.12,154.04,38.011]
[1724761563643,25.93768909,154.12,154.05,1.29798716]
[1724761563853,6.4893,154.1,154.05,7.78898716]
[1724761564217,6.4889,154.11,154.06,6.4908]
[1724761565326,6.4889,154.11,154.07,1.29793795]
[1724761565522,6.4889,154.11,154.06,6.4908]
[1724761566830,6.4889,154.11,154.07,7.78844055]
[1724761567031,6.4889,154.11,154.07,6.4905]
[1724761567238,25.93768909,154.12,154.07,6.4905]
[1724761567840,32.42628909,154.12,154.07,6.4905]
[1724761568641,32.42628909,154.12,154.07,7.78834716]
[1724761568842,6.489,154.11,154.06,22.7172]
[1724761569352,6.489,154.11,154.07,7.78844258]
[1724761570548,6.489,154.11,154.07,6.4905]
[1724761571742,6.489,154.11,154.06,22.7175]
[1724761572555,6.489,154.11,154.07,1.29800551]
[1724761572754,6.489,154.11,154.07,7.78850551]
[1724761572961,6.489,154.11,154.07,7.78841054]
[1724761573955,6.489,154.11,154.07,6.4905]
[1724761575554,6.489,154.11,154.06,24.01540899]
[1724761575778,32.42728909,154.1,154.06,16.2266]
[1724761576058,16.86633421,154.1,154.06,24.01544529]
[1724761576857,10.37673421,154.1,154.07,6.4904]
[1724761577045,6.4889,154.11,154.07,6.4904]
[1724761577246,6.4889,154.11,154.08,1.29791882]
[1724761577650,6.4889,154.11,154.08,1.29788114]
[1724761577856,6.4889,154.11,154.07,7.78828317]
[1724761578562,6.4889,154.11,154.07,6.4904]
[1724761578858,16.2195,154.14,154.06,16.2266]
[1724761578859,16.86603421,154.1,154.06,22.7175]
[1724761579063,16.86603421,154.1,154.06,16.2266]
[1724761579643,16.86603421,154.1,154.06,22.7175]
[1724761582750,10.37673421,154.1,154.07,1.29795588]
[1724761583063,10.37673421,154.1,154.06,22.7175]
[1724761583267,6.4889,154.11,154.06,22.7175]
[1724761583453,16.86563421,154.11,154.07,1.29796498]
[1724761585062,16.86563421,154.11,154.08,1.29796581]
[1724761585640,1.1302394,154.13,154.08,7.78806581]
[1724761585842,17.99527361,154.13,154.08,7.78806581]
[1724761586060,20.0,154.12,154.08,6.4901]
[1724761587164,26.4887,154.12,154.07,6.4904]
[1724761587557,16.86563421,154.11,154.07,6.4904]
[1724761588139,16.86563421,154.11,154.06,22.7174]
[1724761588368,10.37673421,154.09,154.06,16.2266]
[1724761588550,10.37673421,154.09,154.06,22.7175]
[1724761589565,16.86573421,154.11,154.07,7.78843829]
[1724761589958,16.86573421,154.11,154.07,6.4904]
[1724761591171,16.86573421,154.11,154.06,22.7174]
[1724761592165,6.4894,154.1,154.06,22.7174]
[1724761592871,6.4894,154.1,154.06,16.2266]
[1724761593082,16.86753421,154.07,154.04,15.5711]
[1724761593249,20.0,154.12,154.0,37.6529]
[1724761593250,10.37673421,154.05,154.0,37.6529]
[1724761594780,6.4909,154.06,154.02,6.4926]
[1724761594958,16.86733421,154.07,154.02,7.79092601]
[1724761595170,10.37673421,154.09,154.02,17.52922601]
[1724761595348,20.0,154.08,154.02,17.52922601]
[1724761595549,26.4901,154.08,154.04,6.4914]
[1724761596871,26.4901,154.08,154.05,1.29814758]
[1724761597073,26.4901,154.08,154.04,6.4914]
[1724761598276,26.4901,154.08,154.03,7.91563817]
[1724761599268,6.4897,154.09,154.04,6.4917]
[1724761599571,6.4897,154.09,154.05,1.29809387]
[1724761603905,6.4897,154.09,154.04,6.4917]
[1724761604078,10.37673421,154.08,154.04,6.4917]
[1724761604251,16.86693421,154.08,154.04,6.4917]
[1724761605285,10.37673421,154.06,154.02,16.2309]
[1724761606670,16.86783421,154.06,154.02,22.7235]
[1724761607576,6.4906,154.07,154.03,1.29834734]
[1724761608756,6.4906,154.07,154.03,7.79054734]
[1724761609157,6.4901,154.08,154.04,6.4917]
[1724761610683,6.4898,154.09,154.05,6.4912]
[1724761610855,6.4898,154.09,154.04,22.7207]
[1724761612183,16.86723421,154.07,154.04,16.2291]
[1724761612979,10.37673421,154.07,154.04,16.2291]
[1724761613184,6.4902,154.08,154.04,24.01892314]
[1724761614177,6.4902,154.08,154.04,22.7207]
[1724761617583,22.2853,154.08,154.04,22.7207]
[1724761617786,30.0,154.05,153.95,1.29822424]
[1724761617961,16.86963421,154.02,153.96,7.79360482]
[1724761618282,30.0,154.05,153.98,15.9728]
[1724761618283,40.37673421,154.05,153.98,15.9728]
[1724761618501,6.4919,154.04,153.99,7.79249619]
[1724761618661,20.0,154.03,153.99,7.79249619]
[1724761619186,26.4923,154.03,153.99,7.79249619]
[1724761619363,26.4923,154.03,153.99,1.29859619]
[1724761620389,26.4923,154.03,153.98,22.467]
[1724761621392,6.4927,154.02,153.98,15.9728]
[1724761621682,10.37673421,154.01,153.98,15.9728]
[1724761621858,16.86993421,154.01,153.98,15.9728]
[1724761622061,16.86993421,154.01,153.97,16.2362]
[1724761622062,16.87063421,153.99,153.94,32.4763]
[1724761622374,16.87063421,153.99,153.94,38.9722]
[1724761624986,16.87063421,153.99,153.95,7.7945123]
[1724761625205,1.13118559,154.01,153.96,1.29890123]
[1724761625206,6.4935,154.0,153.96,1.29890123]
[1724761625373,6.4931,154.01,153.96,7.79400123]
[1724761625572,20.0,154.0,153.96,7.79400123]
[1724761626180,20.0,154.0,153.96,6.4951]
[1724761626373,20.0,154.0,153.96,7.7938952]
[1724761626898,30.37673421,154.0,153.96,6.4951]
[1724761627084,30.37673421,154.0,153.94,32.4763]
[1724761627280,6.4973,153.91,153.86,16.248]
[1724761627483,6.4981,153.89,153.84,16.3692]
[1724761627686,6.4981,153.89,153.8,15.9395]
[1724761627687,26.4981,153.89,153.8,15.9395]
[1724761627885,6.5001,153.85,153.8,15.9395]
[1724761628094,6.5001,153.85,153.8,22.4413]
[1724761628603,6.4994,153.86,153.8,22.4413]
[1724761629291,46.0270525,153.89,153.8,15.9395]
[1724761629483,20.0,153.88,153.8,15.9395]
[1724761630101,20.0,153.88,153.82,6.501]
[1724761630102,6.499,153.87,153.82,6.501]
[1724761630405,20.0,153.88,153.84,6.5002]
[1724761630608,26.4981,153.9,153.84,6.5002]
[1724761632080,20.0,153.9,153.87,6.4989]
[1724761632280,20.0,153.91,153.87,6.4989]
[1724761633508,20.0,153.91,153.88,7.79804376]
[1724761633697,20.0,153.92,153.88,6.4985]
[1724761634181,20.0,153.92,153.89,6.498]
[1724761634380,26.4965,153.93,153.88,6.4984]
[1724761634804,6.4972,153.92,153.86,16.37299]
[1724761635011,6.4972,153.92,153.87,6.4988]
[1724761635776,6.4974,153.91,153.86,22.7468]
[1724761636021,46.0270525,153.93,153.84,6.4998]
[1724761636022,26.0270525,153.89,153.84,6.4998]
[1724761636586,7.83139005,153.92,153.78,6.6522]
[1724761636587,20.0,153.88,153.8,32.1943]
[1724761636911,6.4995,153.86,153.82,6.501]
[1724761637083,46.0270525,153.88,153.82,6.501]
[1724761637578,6.4993,153.87,153.82,6.501]
[1724761637781,26.0270525,153.84,153.76,6.72782051]
[1724761638100,0.12549,153.82,153.72,143.12164339]
[1724761638287,6.5044,153.75,153.72,143.12164339]
[1724761638890,26.0270525,153.77,153.72,143.12164339]
[1724761638891,6.5045,153.74,153.72,143.12164339]
[1724761639283,6.504,153.75,153.72,143.12164339]
[1724761639603,6.5036,153.77,153.72,143.12164339]
[1724761639778,20.0,153.76,153.72,143.12164339]
[1724761640190,26.0270525,153.79,153.73,1.30095213]
[1724761640391,20.0,153.78,153.74,6.5043]
[1724761641013,20.0,153.79,153.74,6.5043]
[1724761642085,20.0,153.79,153.74,5.0043]
[1724761642287,20.0,153.79,153.74,0.12549]
[1724761642605,6.5015,153.82,153.76,6.5036]
[1724761643481,26.0270525,153.84,153.78,16.2569]
[1724761643482,6.5006,153.84,153.78,16.2569]
[1724761643682,26.0270525,153.85,153.79,6.5019]
[1724761644382,6.5007,153.83,153.78,22.7596]
[1724761644891,20.0,153.82,153.78,22.7596]
[1724761646707,26.5012,153.82,153.78,16.2569]
[1724761646906,32.5285525,153.81,153.76,6.5032]
[1724761647099,32.5285525,153.81,153.77,6.5032]
[1724761647301,26.0270525,153.81,153.77,6.5032]
[1724761648580,26.5011,153.82,153.77,6.5032]
[1724761650413,1.13227878,153.84,153.83,6.5006]
[1724761650712,32.5242525,153.92,153.87,6.4989]
[1724761650921,1.13176618,153.91,153.87,6.4989]
[1724761651287,7.62916618,153.91,153.86,6.4994]
[1724761651490,1.13176618,153.91,153.87,1.29968823]
[1724761651721,26.0270525,153.94,153.87,1.29968823]
[1724761652398,6.4967,153.93,153.88,6.4981]
[1724761652810,20.0,153.92,153.88,6.4981]
[1724761653894,26.4969,153.92,153.88,6.4981]
[1724761654611,20.0,153.92,153.86,16.2479]
[1724761654825,26.0270525,153.92,153.86,16.2479]
[1724761655014,6.4974,153.91,153.86,16.2479]
[1724761655317,20.0,153.9,153.86,16.2479]
[1724761655616,20.0,153.9,153.86,22.747]
[1724761656312,20.0,153.9,153.87,7.79867276]
[1724761656513,20.0,153.91,153.87,6.4989]
[1724761658017,26.4973,153.91,153.87,6.4989]
[1724761658206,20.0,153.91,153.87,6.4989]
[1724761658393,6.4979,153.9,153.86,16.2479]
[1724761658607,20.0,153.89,153.86,16.2479]
[1724761659006,26.4981,153.89,153.86,16.2479]
[1724761659611,20.0,153.89,153.86,16.2479]
[1724761660012,20.0,153.89,153.86,22.7472]
[1724761660720,26.0270525,153.94,153.87,1.29979558]
[1724761661023,26.4968,153.93,153.88,6.4984]
[1724761661915,6.4968,153.92,153.88,6.4984]
[1724761662303,20.0,153.91,153.88,6.4984]
[1724761665037,20.0,153.91,153.86,16.2479]
[1724761665038,20.0,153.91,153.89,6.4981]
[1724761665202,20.0,153.91,153.86,16.2479]
[1724761665408,26.4969,153.92,153.88,6.4984]
[1724761666630,1.13153463,153.96,153.89,1.29963478]
[1724761666933,21.13153463,153.96,153.89,1.29963478]
[1724761667524,1.13153463,153.96,153.89,1.29963478]
[1724761667838,48.3260525,154.0,153.9,0.12549]
[1724761668126,6.4948,153.97,153.92,22.7383]
[1724761669335,6.4952,153.96,153.92,22.7383]
[1724761669536,6.4948,153.97,153.92,22.7383]
[1724761670213,20.0,153.96,153.92,22.7383]
[1724761670644,26.4953,153.96,153.92,22.7383]
[1724761670814,46.0270525,153.96,153.9,6.4975]
[1724761671138,6.4957,153.95,153.9,6.4975]
[1724761674634,46.0270525,153.96,153.89,16.2447]
[1724761674635,52.5223525,153.96,153.91,7.79657538]
[1724761674813,52.5223525,153.96,153.91,6.4971]
[1724761676030,6.4956,153.95,153.91,6.4971]
[1724761677945,26.4952,153.96,153.92,6.4966]
[1724761678743,26.4952,153.96,153.92,6.4968]
[1724761682848,20.0,153.96,153.93,6.4963]
[1724761685329,20.0,153.96,153.94,6.4958]
[1724761685635,20.0,153.97,153.94,7.79492205]
[1724761685953,20.0,153.97,153.94,6.4958]
[1724761690152,26.4948,153.97,153.93,22.7368]
[1724761690538,6.4952,153.96,153.92,6.4967]
[1724761692058,6.4957,153.95,153.91,6.4972]
[1724761692940,6.496,153.94,153.9,22.741]
[1724761696546,6.4973,153.91,153.86,22.4074]
[1724761696759,42.2658525,153.96,153.87,0.25098]
[1724761696926,26.0270525,153.94,153.86,32.5868]
[1724761697123,26.0270525,153.94,153.85,6.4995]
[1724761697124,6.4977,153.9,153.85,6.4995]
[1724761697345,6.4977,153.9,153.86,6.4993]
[1724761697552,6.4974,153.91,153.86,6.4993]
[1724761697927,6.4969,153.92,153.87,6.4989]
[1724761698134,20.0,153.91,153.87,6.4989]
[1724761702560,20.0,153.91,153.88,7.7978935]
[1724761702744,20.0,153.92,153.89,6.498]
[1724761706957,20.0,153.92,153.88,22.7444]
[1724761707261,20.0,153.92,153.88,16.2459]
[1724761707262,26.497,153.92,153.88,16.2459]
[1724761708146,10.40074537,153.91,153.85,16.249]
[1724761708353,10.40074537,153.91,153.86,6.4992]
[1724761709251,6.4981,153.89,153.85,22.7487]
[1724761711645,6.4978,153.9,153.86,6.4992]
[1724761711840,20.0,153.89,153.86,7.79893273]
[1724761712061,16.54094537,153.93,153.87,16.2469]
[1724761712372,20.0,153.92,153.87,16.2469]
[1724761713641,26.4969,153.92,153.88,6.4985]
[1724761714873,6.4973,153.91,153.87,22.7457]
[1724761715080,6.498,153.9,153.86,6.4993]
[1724761715279,6.4978,153.9,153.85,6.4995]
[1724761715572,6.4982,153.89,153.85,6.4995]
[1724761716872,6.4982,153.89,153.84,22.75]
[1724761718875,6.4982,153.89,153.85,6.4997]
[1724761719271,6.4978,153.9,153.86,6.4991]
[1724761719468,20.0,153.89,153.86,6.4991]
[1724761721477,20.0,153.89,153.86,16.2475]
[1724761721655,16.89764537,153.92,153.88,6.4984]
[1724761721656,20.0,153.91,153.88,6.4984]
[1724761721891,12.6367,153.93,153.86,17.54719122]
[1724761722560,12.6367,153.93,153.86,16.2475]
[1724761723071,6.4969,153.92,153.88,6.4984]
[1724761723384,20.0,153.91,153.88,6.4984]
[1724761723880,20.0,153.91,153.87,6.4988]
[1724761724565,20.0,153.91,153.88,7.79814313]
[1724761725577,20.0,153.91,153.88,6.4985]
[1724761726582,20.0,153.91,153.87,6.4988]
[1724761727382,20.0,153.91,153.88,6.4984]
[1724761727692,20.0,153.92,153.88,6.4984]
[1724761727978,20.0,153.92,153.89,1.29954563]
[1724761728278,20.0,153.93,153.9,6.4976]
[1724761728882,20.0,153.93,153.89,51.498]
[1724761729476,6.4972,153.92,153.88,22.7445]
[1724761729658,20.0,153.91,153.88,22.7445]
[1724761730691,20.0,153.91,153.88,16.2461]
[1724761732579,20.0,153.91,153.88,24.04389668]
[1724761732770,20.0,153.92,153.88,22.7443]
[1724761733178,1.13148222,153.95,153.9,6.4975]
[1724761733381,6.496,153.94,153.9,6.4975]
[1724761733609,20.0,153.93,153.9,6.4975]
[1724761733890,6.496,153.94,153.9,6.4975]
[1724761735267,20.0,153.93,153.9,6.4975]
[1724761738190,22.5012,153.97,153.92,6.4968]
[1724761738191,6.4953,153.96,153.92,6.4968]
[1724761738413,20.0,153.95,153.92,6.4968]
[1724761739283,23.32490848,153.98,153.92,17.54102329]
[1724761739491,7.62580848,153.98,153.93,46.29932329]
[1724761739687,6.4944,153.98,153.94,6.4957]
[1724761740684,20.0,153.97,153.94,6.4957]
[1724761741285,26.4948,153.97,153.93,6.4964]
[1724761741591,26.4948,153.97,153.92,16.2417]
[1724761741592,16.89604537,153.96,153.92,16.2417]
[1724761741889,16.89604537,153.96,153.91,6.4971]
[1724761741890,6.4956,153.95,153.91,6.4971]
[1724761742077,16.89594537,153.96,153.91,6.4971]
[1724761743094,16.89594537,153.96,153.92,6.4968]
[1724761743783,10.40074537,153.96,153.93,6.4964]
[1724761744201,26.4948,153.97,153.93,6.4964]
[1724761744694,20.0,153.97,153.93,6.4964]
[1724761746697,26.4947,153.97,153.93,6.4964]
[1724761752097,6.4953,153.96,153.92,6.4967]
[1724761754986,6.4953,153.96,153.92,7.79593383]
[1724761755492,6.4953,153.96,153.93,1.29922319]
[1724761755674,6.4953,153.96,153.93,1.29914484]
[1724761755992,6.4953,153.96,153.92,6.4967]
[1724761759980,6.4961,153.94,153.91,16.2425]
[1724761765284,5.9957,153.95,153.91,22.7395]
[1724761765801,6.4961,153.94,153.91,16.2425]
[1724761766115,10.40074537,153.93,153.88,16.2458]
[1724761766406,6.4973,153.91,153.88,16.2458]
[1724761766905,6.4969,153.92,153.88,22.7442]
[1724761767084,16.89724537,153.93,153.88,22.7442]
[1724761771594,6.4969,153.92,153.88,22.7442]
[1724761772002,6.4969,153.92,153.88,16.2458]
[1724761772514,6.4969,153.92,153.88,22.7443]
[1724761772715,6.4969,153.92,153.88,16.2458]
[1724761773507,6.4969,153.92,153.88,22.7443]
[1724761774316,33.23614537,153.95,153.88,16.2458]
[1724761774623,20.0,153.94,153.88,16.2458]
[1724761775117,6.4967,153.93,153.89,6.4981]
[1724761775320,20.0,153.92,153.88,22.7442]
[1724761776328,26.497,153.92,153.88,16.2458]
[1724761777412,26.497,153.92,153.88,22.744]
[1724761778008,20.0,153.92,153.88,22.744]
[1724761779801,26.4969,153.92,153.88,22.744]
[1724761781633,20.0,153.92,153.9,16.2437]
[1724761781845,26.496,153.94,153.9,22.7413]
[1724761782630,1.13144138,153.96,153.9,22.7413]
[1724761782631,1.13144138,153.96,153.92,6.4967]
[1724761782809,1.13144138,153.96,153.91,1.29941571]
[1724761783009,7.62684138,153.96,153.91,7.79661571]
[1724761783226,6.4956,153.95,153.91,7.79661571]
[1724761783424,6.4956,153.95,153.91,6.4972]
[1724761784432,20.0,153.94,153.9,22.7412]
[1724761788625,20.0,153.94,153.9,16.2437]
[1724761788818,30.40074537,153.94,153.88,6.4985]
[1724761789411,31.53233545,153.94,153.88,6.4985]
[1724761789813,6.4969,153.92,153.88,6.4985]
[1724761791311,6.4965,153.93,153.88,6.4985]
[1724761791510,6.4965,153.93,153.89,6.4979]
[1724761793678,6.4982,153.89,153.85,22.8729]
[1724761793846,20.0,153.88,153.85,16.3732]
[1724761794138,26.4987,153.88,153.85,16.3732]
[1724761795535,20.0,153.88,153.86,46.29988349]
[1724761795747,26.4982,153.89,153.86,45.0]
[1724761795924,20.0,153.89,153.86,45.0]
[1724761796837,20.0,153.89,153.86,61.2476]
[1724761797024,32.18518794,153.94,153.88,6.4982]
[1724761797025,20.0,153.91,153.88,6.4982]
[1724761797354,30.40074537,153.93,153.88,6.4982]
[1724761797648,6.4972,153.92,153.88,6.4982]
[1724761797823,20.0,153.91,153.88,6.4982]
[1724761798136,20.0,153.91,153.86,61.2476]
[1724761798137,20.0,153.91,153.87,6.4988]
[1724761798726,26.4974,153.91,153.87,6.4988]
[1724761800442,20.0,153.91,153.86,45.0]
[1724761800750,10.40074537,153.89,153.85,16.2492]
[1724761801641,10.40074537,153.89,153.84,6.4999]
[1724761801642,26.4985,153.88,153.84,6.4999]
[1724761801945,20.0,153.88,153.85,7.79971896]
[1724761802319,20.0,153.88,153.85,6.4998]
[1724761802720,20.0,153.89,153.85,6.4998]
[1724761803120,20.0,153.89,153.86,7.79904963]
[1724761803519,20.0,153.89,153.86,6.4993]
[1724761803724,20.0,153.89,153.85,6.62519]
[1724761804242,20.0,153.89,153.86,52.79902526]
[1724761804440,26.4978,153.9,153.86,51.4993]
[1724761804648,6.4981,153.89,153.86,45.0]
[1724761804944,26.4978,153.9,153.86,6.4993]
[1724761805532,20.0,153.9,153.84,16.2501]
[1724761805737,26.4977,153.9,153.85,51.4997]
[1724761806024,20.0,153.9,153.86,17.5475673]
[1724761806224,20.0,153.91,153.86,17.5475673]
[1724761806748,20.0,153.91,153.87,6.4988]
[1724761807121,26.4973,153.91,153.87,6.4988]
[1724761807320,26.4973,153.91,153.86,22.7471]
[1724761808245,26.4973,153.91,153.84,6.5002]
[1724761808246,6.4983,153.89,153.84,6.5002]
[1724761808542,20.0,153.88,153.84,6.5002]
[1724761809624,20.0,153.88,153.86,6.4992]
[1724761809828,6.4973,153.91,153.86,7.798913]
[1724761810442,20.0,153.9,153.86,6.4992]
[1724761810842,26.4978,153.9,153.85,51.4997]
[1724761811427,10.40074537,153.87,153.83,22.752]
[1724761811629,20.0,153.9,153.8,22.7566]
[1724761811850,16.90074537,153.85,153.8,22.7566]
[1724761812050,10.40074537,153.85,153.81,6.5014]
[1724761812630,6.5003,153.84,153.8,16.2547]
[1724761812963,10.40074537,153.85,153.8,16.2547]
[1724761813756,10.40074537,153.83,153.77,31.6421]
[1724761814072,20.0,153.82,153.77,31.6421]
[1724761814555,20.0,153.82,153.79,6.5022]
[1724761814765,36.90064537,153.85,153.8,6.5019]
[1724761814943,30.40074537,153.85,153.81,6.5013]
[1724761815137,36.90054537,153.85,153.8,6.5018]
[1724761815354,30.40074537,153.85,153.8,6.5018]
[1724761815546,20.0,153.85,153.8,6.5018]
[1724761815862,16.90104537,153.84,153.79,22.7573]
[1724761816066,20.0,153.83,153.79,22.7573]
[1724761817244,20.0,153.83,153.8,51.5017]
[1724761817450,20.0,153.85,153.8,51.5017]
[1724761817833,10.40074537,153.84,153.79,22.757]
[1724761818066,20.0,153.83,153.79,22.757]
[1724761820549,20.0,153.83,153.8,6.5016]
[1724761820756,20.0,153.84,153.8,6.5016]
[1724761821634,26.5002,153.84,153.8,6.5016]
[1724761822036,26.5002,153.84,153.79,16.255]
[1724761822037,26.5002,153.84,153.79,22.7573]
[1724761822256,10.40074537,153.83,153.77,15.3843]
[1724761822446,16.90184537,153.82,153.77,6.5028]
[1724761822654,6.5016,153.81,153.76,6.5035]
[1724761822855,26.5016,153.81,153.76,6.5035]
[1724761823055,30.40074537,153.81,153.75,16.2594]
[1724761823358,6.502,153.8,153.75,22.7634]
[1724761823764,30.40074537,153.81,153.75,16.2594]
[1724761824067,20.0,153.81,153.78,16.2567]
[1724761824448,20.0,153.82,153.78,16.2567]
[1724761824647,26.5011,153.82,153.78,16.2567]
[1724761824960,20.0,153.82,153.77,6.5028]
[1724761825140,6.5015,153.81,153.76,6.5035]
[1724761825336,20.0,153.8,153.76,6.5035]
[1724761825758,20.0,153.8,153.76,7.80404164]
[1724761825961,20.0,153.8,153.76,6.5035]
[1724761827051,20.0,153.8,153.76,7.80404329]
[1724761827263,20.0,153.8,153.77,6.5031]
[1724761827644,26.5015,153.81,153.77,6.5031]
[1724761828465,26.5015,153.81,153.75,17.56044047]
[1724761828466,6.5019,153.8,153.75,17.56044047]
[1724761828687,20.0,153.81,153.78,6.5026]
[1724761828840,6.5001,153.85,153.8,22.7567]
[1724761829735,6.6596,153.86,153.8,16.2548]
[1724761829932,22.7203,153.88,153.83,22.7516]
[1724761830362,18.02675721,153.9,153.83,22.7516]
[1724761830363,7.62601184,153.9,153.84,1.30002635]
[1724761830542,14.12401184,153.9,153.85,6.4997]
[1724761830866,6.4981,153.89,153.84,7.80022635]
[1724761831242,6.4981,153.89,153.84,6.5002]
[1724761831647,6.4981,153.89,153.84,7.80007108]
[1724761831857,16.89884537,153.89,153.84,6.5002]
[1724761832044,6.4981,153.89,153.84,6.5002]
[1724761832766,20.0,153.88,153.84,6.5002]
[1724761833153,26.4989,153.88,153.83,16.2511]
[1724761833361,26.4989,153.88,153.83,22.7515]
[1724761834461,20.0,153.88,153.84,7.79997916]
[1724761834654,20.0,153.89,153.85,6.4996]
[1724761835065,20.0,153.91,153.85,6.4996]
[1724761835778,6.4977,153.9,153.85,6.4996]
[1724761836079,20.0,153.89,153.86,7.79923428]
[1724761836257,1.12935187,153.92,153.87,46.29970937]
[1724761836456,6.4956,153.95,153.9,6.4977]
[1724761837884,20.0,153.94,153.9,6.4977]
[1724761838457,20.0,153.94,153.88,0.12549]